bitfinex/quotes_SOLUSD_20251118
["timestamp","ask_amount","ask_price","bid_price","bid_amount"]
[1763434420745,5.89434502,133.52,133.51,6.09090236]
[1763434420957,0.72,133.56,133.51,9.78882769]
[1763434421159,5.89434502,133.54,133.51,15.87973005]
[1763434421742,5.89434502,133.55,133.51,16.56973005]
[1763434422047,5.89434502,133.54,133.51,15.87973005]
[1763434422254,5.89434502,133.54,133.51,16.55973005]
[1763434422441,5.89434502,133.54,133.51,15.87973005]
[1763434422646,5.89434502,133.53,133.51,15.87973005]
[1763434422843,102.7,133.58,133.5,6.09090236]
[1763434422844,18.12096,133.55,133.5,6.09090236]
[1763434423055,18.12096,133.51,133.5,15.87973005]
[1763434423438,24.01530502,133.55,133.51,9.78882769]
[1763434423640,24.01530502,133.55,133.51,15.87033034]
[1763434423839,24.69530502,133.55,133.51,15.87033034]
[1763434424040,5.89434502,133.53,133.51,15.87033034]
[1763434424357,5.89434502,133.52,133.5,6.08150265]
[1763434424756,18.12096,133.51,133.5,6.08150265]
[1763434424950,18.12096,133.5,133.49,15.87033034]
[1763434425552,18.80096,133.53,133.49,15.87033034]
[1763434425752,18.12096,133.5,133.49,15.87033034]
[1763434426268,0.68,133.52,133.49,15.87033034]
[1763434426453,6.57434502,133.52,133.5,9.78882769]
[1763434427005,6.57434502,133.51,133.49,6.08150265]
[1763434427145,5.89434502,133.51,133.48,6.08150265]
[1763434427346,5.89434502,133.52,133.48,6.08150265]
[1763434427754,6.57434502,133.52,133.48,6.08150265]
[1763434428771,6.57434502,133.51,133.48,6.08150265]
[1763434429173,6.57434502,133.51,133.47,6.08150265]
[1763434429572,5.89434502,133.51,133.47,6.08150265]
[1763434429869,18.12096,133.45,133.43,6.08150265]
[1763434430275,0.68,133.52,133.44,6.08150265]
[1763434430471,18.12096,133.5,133.45,15.87033034]
[1763434430648,18.12096,133.46,133.45,9.78882769]
[1763434431748,18.12096,133.46,133.44,9.78882769]
[1763434431749,18.12096,133.45,133.44,9.78882769]
[1763434432155,18.12096,133.45,133.41,5.89434502]
[1763434432476,0.68,133.45,133.42,9.78882769]
[1763434432853,0.68,133.45,133.41,9.78882769]
[1763434433570,6.57434502,133.45,133.41,10.46882769]
[1763434434580,5.89434502,133.45,133.41,10.46882769]
[1763434435273,5.89434502,133.46,133.41,10.46882769]
[1763434435777,5.89434502,133.47,133.42,0.68]
[1763434435947,5.89434502,133.48,133.42,6.57434502]
[1763434436146,6.57434502,133.49,133.44,9.78882769]
[1763434436565,6.57434502,133.48,133.44,10.46882769]
[1763434437164,24.69530502,133.48,133.44,10.46882769]
[1763434437678,24.01530502,133.45,133.41,10.46882769]
[1763434437975,18.12096,133.45,133.41,16.36317271]
[1763434438180,18.12096,133.45,133.43,9.78882769]
[1763434438761,18.12096,133.45,133.43,0.68]
[1763434439576,24.01530502,133.45,133.41,0.68]
[1763434440262,103.38,133.51,133.45,9.78882769]
[1763434440467,5.89434502,133.49,133.45,9.78882769]
[1763434440671,5.89434502,133.48,133.43,0.68]
[1763434440883,18.12096,133.5,133.42,9.78882769]
[1763434441178,5.89434502,133.48,133.45,9.78882769]
[1763434441553,5.89434502,133.46,133.43,10.46882769]
[1763434442008,5.89434502,133.46,133.43,9.78882769]
[1763434442186,0.68,133.48,133.42,9.78882769]
[1763434442387,5.89434502,133.48,133.45,9.78882769]
[1763434443063,0.68,133.53,133.47,9.78882769]
[1763434443271,5.89434502,133.54,133.49,9.78882769]
[1763434443466,6.57434502,133.54,133.5,0.68]
[1763434443792,5.89434502,133.51,133.44,0.68]
[1763434443954,5.89434502,133.49,133.45,9.78882769]
[1763434444149,6.57434502,133.51,133.45,9.78882769]
[1763434444350,6.57434502,133.51,133.42,8.06195505]
[1763434444351,18.12096,133.48,133.42,8.06195505]
[1763434444555,24.01530502,133.48,133.44,9.78882769]
[1763434444770,5.89434502,133.47,133.44,9.78882769]
[1763434444980,5.89434502,133.47,133.42,9.78882769]
[1763434445173,5.89434502,133.47,133.44,0.68]
[1763434445369,5.89434502,133.48,133.44,0.68]
[1763434447399,6.57434502,133.48,133.44,0.68]
[1763434447709,5.89434502,133.48,133.44,0.68]
[1763434448286,5.89434502,133.49,133.45,9.78882769]
[1763434448904,5.89434502,133.48,133.44,9.78882769]
[1763434449102,5.89434502,133.48,133.44,10.46882769]
[1763434449300,6.57434502,133.47,133.44,9.78882769]
[1763434449810,5.89434502,133.47,133.42,18.53078274]
[1763434449986,5.89434502,133.47,133.44,9.78882769]
[1763434450185,5.89434502,133.46,133.44,9.78882769]
[1763434450486,5.89434502,133.45,133.42,8.06195505]
[1763434450694,5.89434502,133.45,133.41,9.78882769]
[1763434450695,5.89434502,133.45,133.41,17.85078274]
[1763434451009,0.68,133.45,133.41,18.53078274]
[1763434451204,5.89434502,133.44,133.41,18.53078274]
[1763434451403,5.89434502,133.44,133.41,10.46882769]
[1763434451708,0.68,133.45,133.41,10.46882769]
[1763434451905,0.68,133.45,133.41,9.78882769]
[1763434451906,5.89434502,133.44,133.41,9.78882769]
[1763434452128,18.12096,133.44,133.39,1.93593088]
[1763434452291,5.89434502,133.42,133.39,1.93593088]
[1763434452718,6.60434502,133.41,133.39,1.93593088]
[1763434452915,5.89434502,133.4,133.39,1.93593088]
[1763434453118,5.89434502,133.47,133.39,1.93593088]
[1763434453321,5.89434502,133.42,133.39,1.93593088]
[1763434453484,5.89434502,133.41,133.39,1.93593088]
[1763434454087,0.71,133.43,133.39,1.93593088]
[1763434454314,18.12096,133.4,133.39,11.72475857]
[1763434454491,5.89434502,133.44,133.4,9.78882769]
[1763434454895,18.12096,133.41,133.4,9.78882769]
[1763434455093,18.12096,133.41,133.39,1.93593088]
[1763434455417,5.89434502,133.41,133.39,9.99788593]
[1763434455787,5.89434502,133.41,133.39,1.93593088]
[1763434456091,5.89434502,133.4,133.39,1.93593088]
[1763434456489,6.60434502,133.4,133.39,1.93593088]
[1763434457101,6.60434502,133.4,133.34,8.16195505]
[1763434457307,5.89434502,133.35,133.34,8.16195505]
[1763434458507,5.89434502,133.35,133.34,0.1]
[1763434458994,24.01530502,133.35,133.34,0.1]
[1763434461399,24.68530502,133.35,133.34,0.1]
[1763434462217,6.56434502,133.35,133.34,6.27463304]
[1763434462415,6.56434502,133.35,133.34,0.1]
[1763434462617,24.68530502,133.35,133.34,0.1]
[1763434462793,5.89434502,133.35,133.34,6.27463304]
[1763434462993,5.89434502,133.36,133.34,6.27463304]
[1763434463309,5.89434502,133.35,133.34,6.27463304]
[1763434463814,24.68530502,133.35,133.34,6.27463304]
[1763434464305,24.68530502,133.35,133.34,0.1]
[1763434464526,6.56434502,133.35,133.34,0.1]
[1763434465291,24.68530502,133.35,133.34,0.1]
[1763434465695,6.56434502,133.35,133.34,0.1]
[1763434467303,18.12096,133.32,133.3,0.1]
[1763434467818,5.89434502,133.31,133.3,0.1]
[1763434468029,5.89434502,133.32,133.3,0.78]
[1763434468204,18.12096,133.31,133.3,10.56882769]
[1763434468624,18.12096,133.33,133.3,10.56882769]
[1763434468811,18.12096,133.32,133.31,6.84038102]
[1763434469004,9.15658079,133.34,133.31,10.46882769]
[1763434469204,9.15658079,133.4,133.32,18.53078274]
[1763434469205,9.15658079,133.38,133.32,18.53078274]
[1763434469417,9.15658079,133.37,133.36,6.15508609]
[1763434469620,9.15658079,133.37,133.35,6.15508609]
[1763434469934,9.15658079,133.36,133.35,6.15508609]
[1763434470232,9.15658079,133.36,133.34,6.15508609]
[1763434470534,9.15658079,133.36,133.34,6.83508609]
[1763434470831,18.12096,133.33,133.32,6.15508609]
[1763434470996,9.15658079,133.35,133.31,17.85078274]
[1763434471193,9.15658079,133.36,133.34,6.15646439]
[1763434471604,9.15658079,133.36,133.34,6.83646439]
[1763434472403,9.15658079,133.35,133.34,6.15646439]
[1763434472619,9.15658079,133.35,133.33,6.15646439]
[1763434472828,9.15658079,133.35,133.34,6.15646439]
[1763434473325,9.15658079,133.36,133.33,18.53078274]
[1763434473526,9.15658079,133.36,133.35,6.15719926]
[1763434475405,18.12096,133.36,133.35,6.83719926]
[1763434475731,18.12096,133.36,133.35,10.46882769]
[1763434475908,18.12096,133.37,133.36,9.78882769]
[1763434476104,0.67,133.48,133.36,19.62540848]
[1763434476327,9.15658079,133.42,133.4,6.15553462]
[1763434476533,18.12096,133.4,133.39,6.15553462]
[1763434477115,9.15658079,133.43,133.4,9.78882769]
[1763434477316,48.5929639,133.53,133.42,15.9430632]
[1763434477317,9.49230253,133.53,133.42,15.9430632]
[1763434477637,0.67,133.51,133.45,6.14969381]
[1763434477838,18.12096,133.47,133.46,6.14969381]
[1763434478210,18.12096,133.47,133.46,15.9385215]
[1763434478922,9.15658079,133.49,133.46,15.9385215]
[1763434479127,18.12096,133.47,133.46,6.14969381]
[1763434479420,18.12096,133.47,133.39,21.49513502]
[1763434479421,27.27754079,133.47,133.42,6.14969381]
[1763434479736,9.15658079,133.43,133.41,6.14969381]
[1763434479908,18.79096,133.47,133.42,6.14969381]
[1763434480104,9.15658079,133.43,133.42,6.14969381]
[1763434481339,9.15658079,133.43,133.42,6.82969381]
[1763434481520,9.15658079,133.44,133.42,0.68]
[1763434481838,9.15658079,133.44,133.43,6.15004886]
[1763434482067,27.27754079,133.44,133.43,6.15004886]
[1763434482347,27.27754079,133.44,133.42,6.15004886]
[1763434482644,9.15658079,133.43,133.42,6.15004886]
[1763434488774,0.66,133.47,133.42,6.15004886]
[1763434488967,9.15658079,133.44,133.42,8.2073795]
[1763434489288,0.66,133.47,133.43,6.15745654]
[1763434489606,9.15658079,133.44,133.42,8.8873795]
[1763434489877,9.15658079,133.44,133.43,6.15737528]
[1763434490446,9.15658079,133.44,133.42,6.15737528]
[1763434490779,27.93754079,133.43,133.41,6.15737528]
[1763434490996,9.15658079,133.42,133.41,6.15737528]
[1763434491155,9.81658079,133.42,133.41,6.15737528]
[1763434492363,9.81658079,133.42,133.4,6.15737528]
[1763434492571,27.93754079,133.41,133.39,6.15737528]
[1763434492900,9.15658079,133.4,133.39,6.15737528]
[1763434493272,9.15658079,133.4,133.38,8.2073795]
[1763434493488,27.27754079,133.39,133.38,8.2073795]
[1763434493663,18.12096,133.39,133.38,8.2073795]
[1763434493864,27.27754079,133.39,133.38,8.2073795]
[1763434494063,0.66,133.42,133.37,8.8873795]
[1763434494289,9.15658079,133.39,133.37,8.8873795]
[1763434494988,9.15658079,133.39,133.38,8.2073795]
[1763434495296,9.15658079,133.39,133.37,21.67945872]
[1763434495297,18.12096,133.39,133.37,21.67945872]
[1763434495491,18.12096,133.39,133.38,0.68]
[1763434496002,18.12096,133.39,133.38,22.35945872]
[1763434496588,9.15658079,133.4,133.38,10.46882769]
[1763434496770,9.15658079,133.4,133.39,8.23076074]
[1763434497589,0.66,133.43,133.39,8.23076074]
[1763434497590,9.15658079,133.41,133.39,8.23076074]
[1763434498089,9.15658079,133.4,133.39,8.23076074]
[1763434498385,9.15658079,133.4,133.38,21.67945872]
[1763434498591,9.15658079,133.41,133.39,10.46882769]
[1763434498789,9.15658079,133.41,133.4,8.22730014]
[1763434499083,9.15658079,133.41,133.39,22.35945872]
[1763434499395,9.15658079,133.41,133.4,8.22739028]
[1763434500076,0.66,133.44,133.4,8.22739028]
[1763434500385,9.15658079,133.42,133.4,8.90739028]
[1763434500594,9.15658079,133.41,133.4,8.22739028]
[1763434501676,9.81658079,133.41,133.39,8.22739028]
[1763434501895,27.93754079,133.4,133.38,8.22739028]
[1763434502118,27.27754079,133.39,133.38,8.22739028]
[1763434502394,27.27754079,133.39,133.37,8.22739028]
[1763434502588,9.15658079,133.38,133.37,8.23766076]
[1763434503881,9.15658079,133.38,133.37,6.17776069]
[1763434503882,9.81658079,133.38,133.37,6.17776069]
[1763434504284,9.81658079,133.38,133.36,6.17776069]
[1763434504484,9.81658079,133.37,133.36,6.17776069]
[1763434505979,9.81658079,133.37,133.35,6.17776069]
[1763434506493,27.27754079,133.36,133.34,8.23766076]
[1763434506695,18.12096,133.36,133.34,8.23766076]
[1763434506896,9.15658079,133.35,133.34,8.23766076]
[1763434507105,9.81658079,133.35,133.33,8.23766076]
[1763434507283,27.93754079,133.34,133.33,8.23766076]
[1763434507603,27.93754079,133.34,133.32,8.23766076]
[1763434507898,9.15658079,133.33,133.32,8.23766076]
[1763434509204,18.12096,133.31,133.3,6.28475003]
[1763434509385,27.27754079,133.31,133.3,6.28475003]
[1763434509587,27.93754079,133.31,133.3,6.28475003]
[1763434509890,27.93754079,133.31,133.3,0.1]
[1763434510290,0.66,133.33,133.3,0.1]
[1763434510487,9.15658079,133.31,133.3,0.1]
[1763434511080,9.81658079,133.31,133.3,0.1]
[1763434513277,9.15658079,133.31,133.3,0.1]
[1763434513592,9.81658079,133.31,133.3,0.1]
[1763434513900,27.93754079,133.31,133.3,0.1]
[1763434514378,9.81658079,133.31,133.3,0.1]
[1763434516082,9.15658079,133.31,133.3,0.1]
[1763434516280,27.27754079,133.31,133.3,0.1]
[1763434516486,9.15658079,133.31,133.3,0.1]
[1763434516782,9.81658079,133.31,133.3,0.1]
[1763434518296,9.81658079,133.31,133.26,0.1]
[1763434518297,18.12096,133.27,133.26,0.1]
[1763434518505,18.12096,133.27,133.21,6.16147186]
[1763434518506,27.27754079,133.27,133.21,6.16147186]
[1763434518689,27.27754079,133.22,133.2,0.1]
[1763434518896,9.15658079,133.21,133.2,0.1]
[1763434519682,18.12096,133.22,133.2,0.8]
[1763434519885,18.12096,133.22,133.2,6.96147186]
[1763434520390,9.15658079,133.21,133.2,0.1]
[1763434520800,18.12096,133.22,133.2,0.1]
[1763434521098,9.15658079,133.21,133.2,0.1]
[1763434521797,9.86658079,133.21,133.2,0.1]
[1763434522107,9.15658079,133.21,133.2,0.1]
[1763434522289,9.86658079,133.21,133.2,0.1]
[1763434522994,9.15658079,133.21,133.2,0.1]
[1763434523508,9.86658079,133.21,133.2,0.1]
[1763434525103,19.02316158,133.21,133.2,0.1]
[1763434525626,19.02316158,133.21,133.1,19.33017243]
[1763434525627,18.12096,133.18,133.11,9.78882769]
[1763434525918,9.78882769,133.26,133.11,9.78882769]
[1763434525919,18.12096,133.15,133.11,19.64540848]
[1763434526219,18.12096,133.15,133.13,9.78882769]
[1763434526418,27.27754079,133.15,133.12,0.7]
[1763434527996,18.12096,133.15,133.13,9.78882769]
[1763434528292,0.71,133.22,133.12,9.85658079]
[1763434528293,9.15658079,133.19,133.15,9.78882769]
[1763434528507,9.15658079,133.18,133.15,9.78882769]
[1763434528707,9.15658079,133.18,133.16,0.7]
[1763434529106,9.15658079,133.17,133.14,0.7]
[1763434529491,9.15658079,133.16,133.14,0.7]
[1763434529826,0.71,133.19,133.14,0.7]
[1763434529827,9.15658079,133.17,133.14,0.7]
[1763434530595,0.71,133.19,133.14,0.7]
[1763434530816,5.93179535,133.17,133.14,0.7]
[1763434531313,5.93179535,133.16,133.14,0.7]
[1763434532145,18.12096,133.18,133.15,9.78882769]
[1763434532415,5.93179535,133.17,133.14,0.7]
[1763434532717,5.93179535,133.16,133.14,0.7]
[1763434533018,18.12096,133.18,133.15,9.78882769]
[1763434533191,29.12848485,156.52,133.15,9.78882769]
[1763434533192,5.93179535,133.21,133.16,5.93179535]
[1763434533390,5.93179535,133.22,133.18,9.78882769]
[1763434533627,5.93179535,133.22,133.19,0.7]
[1763434533825,24.05275535,133.22,133.19,0.7]
[1763434534315,18.12096,133.22,133.19,0.7]
[1763434534518,24.05275535,133.22,133.19,0.7]
[1763434535013,0.71,133.31,133.21,5.93179535]
[1763434535224,5.93179535,133.27,133.22,5.93179535]
[1763434535392,24.05275535,133.27,133.22,15.72062304]
[1763434535592,5.93179535,133.27,133.24,9.78882769]
[1763434535813,5.93179535,133.26,133.24,9.78882769]
[1763434536015,5.93179535,133.26,133.25,0.7]
[1763434536335,5.93179535,133.27,133.25,0.7]
[1763434537122,18.12096,133.26,133.25,10.48882769]
[1763434537700,5.93179535,133.27,133.25,10.48882769]
[1763434537900,5.93179535,133.26,133.25,0.7]
[1763434538514,5.93179535,133.29,133.26,9.78882769]
[1763434538709,5.93179535,133.29,133.23,5.93179535]
[1763434538911,5.93179535,133.26,133.25,0.7]
[1763434539518,5.93179535,133.27,133.25,0.7]
[1763434540016,5.93179535,133.26,133.25,0.7]
[1763434540228,0.71,133.3,133.25,0.7]
[1763434540535,5.93179535,133.27,133.25,0.7]
[1763434543232,5.93179535,133.26,133.25,0.7]
[1763434543527,5.93179535,133.26,133.21,18.02648845]
[1763434543727,5.93179535,133.24,133.21,10.50882769]
[1763434544029,5.93179535,133.24,133.2,9.78882769]
[1763434544331,5.93179535,133.24,133.22,0.72]
[1763434544528,5.93179535,133.23,133.22,10.50882769]
[1763434545130,5.93179535,133.23,133.18,5.93179535]
[1763434545131,5.93179535,133.23,133.2,10.50882769]
[1763434545330,5.93179535,133.22,133.2,10.50882769]
[1763434545535,5.93179535,133.22,133.21,0.72]
[1763434546937,5.93179535,133.23,133.21,0.72]
[1763434548023,5.93179535,133.23,133.2,18.02648845]
[1763434548336,5.93179535,133.23,133.21,10.50882769]
[1763434548630,5.93179535,133.23,133.21,18.74648845]
[1763434549230,5.93179535,133.23,133.21,18.02648845]
[1763434549423,24.05275535,133.25,133.22,8.95766076]
[1763434549802,24.05275535,133.25,133.23,0.72]
[1763434550034,5.93179535,133.24,133.23,0.72]
[1763434550219,5.93179535,133.24,133.22,8.23766076]
[1763434550530,5.93179535,133.23,133.22,8.23766076]
[1763434550833,5.93179535,133.23,133.21,8.23766076]
[1763434551040,5.93179535,133.22,133.2,8.23766076]
[1763434551345,5.93179535,133.21,133.2,18.74648845]
[1763434551516,5.93179535,133.21,133.2,18.02648845]
[1763434551716,5.93179535,133.21,133.2,8.23766076]
[1763434551909,5.93179535,133.21,133.19,8.23766076]
[1763434552112,5.93179535,133.2,133.18,18.74648845]
[1763434552326,5.93179535,133.2,133.19,8.99132712]
[1763434552651,5.93179535,133.2,133.19,8.27132712]
[1763434553406,0.66,133.23,133.19,12.61063103]
[1763434553407,5.93179535,133.23,133.19,12.61063103]
[1763434553725,5.93179535,133.23,133.22,8.27523315]
[1763434555803,18.12096,133.25,133.21,11.89063103]
[1763434556110,5.93179535,133.23,133.22,8.99692082]
[1763434556310,5.93179535,133.23,133.22,0.72]
[1763434556548,5.93179535,133.23,133.21,11.89063103]
[1763434556833,5.93179535,133.23,133.22,0.72]
[1763434557441,18.12096,133.25,133.23,9.78882769]
[1763434557613,5.93179535,133.25,133.23,21.67945872]
[1763434557814,0.66,133.27,133.24,8.27528958]
[1763434558116,5.93179535,133.25,133.23,8.27528958]
[1763434558323,5.93179535,133.24,133.23,8.27528958]
[1763434559217,6.59179535,133.24,133.23,8.27528958]
[1763434559416,5.93179535,133.24,133.23,8.27528958]
[1763434560239,0.66,133.26,133.23,8.27528958]
[1763434560417,5.93179535,133.24,133.23,8.27528958]
[1763434560732,5.93179535,133.24,133.21,8.27528958]
[1763434560733,18.12096,133.22,133.21,8.27528958]
[1763434561034,5.93179535,133.22,133.21,8.27528958]
[1763434561421,18.12096,133.22,133.21,10.50882769]
[1763434561624,0.66,133.26,133.21,22.39945872]
[1763434561937,18.12096,133.25,133.24,8.27492616]
[1763434562728,18.12096,133.25,133.23,8.27492616]
[1763434562932,18.12096,133.25,133.23,8.99492616]
[1763434563135,2.21256175,133.24,133.23,12.61063103]
[1763434563333,111.550247,133.28,133.23,11.89063103]
[1763434563635,20.33352175,133.26,133.25,11.89063103]
[1763434564141,2.21256175,133.26,133.25,12.61063103]
[1763434564353,18.12096,133.25,133.24,11.89063103]
[1763434564556,20.33352175,133.25,133.24,8.26431604]
[1763434565049,18.12096,133.25,133.24,8.26431604]
[1763434565215,24.04733534,133.25,133.24,8.26431604]
[1763434566236,24.04733534,133.25,133.23,11.89063103]
[1763434566444,24.04733534,133.25,133.23,21.67945872]
[1763434566627,18.12096,133.25,133.24,11.89063103]
[1763434566943,24.04733534,133.25,133.23,12.61063103]
[1763434567128,5.92637534,133.24,133.23,11.89063103]
[1763434567323,5.92637534,133.24,133.22,11.89063103]
[1763434567526,24.04733534,133.23,133.21,11.89063103]
[1763434567728,5.92637534,133.22,133.21,12.61063103]
[1763434568843,6.58637534,133.22,133.21,11.89063103]
[1763434569025,18.12096,133.23,133.21,9.78882769]
[1763434569227,5.92637534,133.23,133.21,21.67945872]
[1763434569432,5.92637534,133.23,133.22,11.89063103]
[1763434569738,5.92637534,133.23,133.22,12.61063103]
[1763434569927,18.12096,133.22,133.21,11.89063103]
[1763434570130,24.70733534,133.22,133.21,8.26131053]
[1763434571845,24.70733534,133.22,133.2,8.26131053]
[1763434572048,6.60637534,133.21,133.2,8.26131053]
[1763434572249,12.53275068,133.21,133.19,8.26131053]
[1763434572743,102.7,133.24,133.19,8.26131053]
[1763434572744,12.53275068,133.2,133.19,8.26131053]
[1763434573128,12.53275068,133.2,133.18,8.26131053]
[1763434573321,6.60637534,133.19,133.18,8.26131053]
[1763434574137,6.60637534,133.19,133.17,8.26131053]
[1763434574448,6.60637534,133.18,133.16,11.89063103]
[1763434574749,5.92637534,133.17,133.15,8.27289143]
[1763434574934,5.92637534,133.16,133.14,8.27289143]
[1763434575131,5.92637534,133.15,133.13,8.27289143]
[1763434575332,5.92637534,133.14,133.13,8.27289143]
[1763434575537,5.92637534,133.14,133.11,11.89063103]
[1763434575538,18.12096,133.12,133.11,8.27289143]
[1763434575729,18.12096,133.12,133.1,10.20882231]
[1763434575730,24.04733534,133.12,133.1,10.20882231]
[1763434575931,24.72733534,133.12,133.1,10.20882231]
[1763434576154,24.72733534,133.12,133.1,1.93593088]
[1763434576329,6.60637534,133.11,133.1,1.93593088]
[1763434578755,0.7,133.14,133.1,1.93593088]
[1763434578933,5.92637534,133.11,133.1,1.93593088]
[1763434580326,5.92637534,133.11,133.1,12.43475857]
[1763434580530,5.92637534,133.12,133.1,12.43475857]
[1763434580731,5.92637534,133.11,133.1,12.43475857]
[1763434580947,5.92637534,133.11,133.1,11.72475857]
[1763434581441,5.92637534,133.11,133.1,12.43475857]
[1763434581758,5.92637534,133.12,133.1,12.43475857]
[1763434581941,5.92637534,133.12,133.11,0.71]
[1763434582843,5.92637534,133.13,133.11,0.71]
[1763434583145,5.92637534,133.2,133.12,9.78882769]
[1763434583350,5.92637534,133.13,133.11,8.98289143]
[1763434583541,5.92637534,133.13,133.1,19.99765]
[1763434583729,0.7,133.16,133.11,0.71]
[1763434583932,5.92637534,133.13,133.11,0.71]
[1763434584335,0.7,133.16,133.11,10.49882769]
[1763434584560,5.92637534,133.13,133.11,10.49882769]
[1763434584866,5.92637534,133.12,133.11,10.49882769]
[1763434585041,5.92637534,133.13,133.11,10.49882769]
[1763434585663,5.92637534,133.13,133.12,0.71]
[1763434586434,24.04733534,133.13,133.12,0.71]
[1763434586637,24.04733534,133.13,133.11,0.71]
[1763434586846,5.92637534,133.12,133.11,0.71]
[1763434588165,24.04733534,133.13,133.11,0.71]
[1763434588753,5.92637534,133.12,133.11,0.71]
[1763434590264,18.12096,133.13,133.11,0.71]
[1763434590453,5.92637534,133.12,133.11,0.71]
[1763434590855,9.1864109,133.12,133.11,0.71]
[1763434591357,9.1864109,133.12,133.1,1.93593088]
[1763434591542,9.1864109,133.11,133.1,1.93593088]
[1763434591871,9.1864109,133.11,133.1,2.64593088]
[1763434592756,3.46339802,133.11,133.1,2.64593088]
[1763434593251,3.46339802,133.11,133.1,1.93593088]
[1763434593457,3.46339802,133.11,133.1,2.64593088]
[1763434594381,3.46339802,133.11,133.1,1.93593088]
[1763434594552,4.16339802,133.11,133.1,1.93593088]
[1763434595177,22.28435802,133.11,133.1,1.93593088]
[1763434595480,18.12096,133.11,133.1,1.93593088]
[1763434595655,21.58435802,133.11,133.1,1.93593088]
[1763434596270,3.46339802,133.11,133.1,1.93593088]
[1763434597860,0.7,133.16,133.1,12.43475857]
[1763434598083,0.7,133.19,133.11,10.49882769]
[1763434598275,3.46339802,133.14,133.11,10.49882769]
[1763434598474,3.46339802,133.14,133.13,9.78882769]
[1763434598774,3.46339802,133.14,133.13,10.49882769]
[1763434599719,3.46339802,133.14,133.13,9.78882769]
[1763434599873,3.46339802,133.14,133.11,9.78882769]
[1763434600073,3.46339802,133.14,133.1,2.64593088]
[1763434600074,3.46339802,133.12,133.1,2.64593088]
[1763434600268,0.7,133.16,133.11,10.49882769]
[1763434600590,3.46339802,133.12,133.1,1.93593088]
[1763434600780,3.46339802,133.11,133.1,1.93593088]
[1763434601468,4.16339802,133.11,133.1,1.93593088]
[1763434601688,3.46339802,133.11,133.1,1.93593088]
[1763434603187,4.16339802,133.11,133.1,1.93593088]
[1763434603694,4.16339802,133.11,133.05,9.78882769]
[1763434603895,3.46339802,133.06,133.04,0.67]
[1763434604098,3.46339802,133.05,133.02,8.27289143]
[1763434604299,3.46339802,133.03,133.01,8.37289143]
[1763434604601,3.46339802,133.02,133.01,0.1]
[1763434604909,27.3215593,133.02,133.01,0.1]
[1763434605682,18.12096,133.02,133.01,0.1]
[1763434605882,9.2005993,133.06,133.02,9.78882769]
[1763434606093,9.2005993,133.05,133.02,9.78882769]
[1763434606522,9.2005993,133.1,133.01,0.1]
[1763434606523,9.2005993,133.04,133.01,0.1]
[1763434606805,9.2005993,133.05,133.01,8.37289143]
[1763434607006,9.2005993,133.1,133.01,8.37289143]
[1763434607197,9.2005993,133.05,133.01,8.37289143]
[1763434607408,9.2005993,133.07,133.02,27.26231842]
[1763434607602,9.2005993,133.08,133.04,9.78882769]
[1763434608606,0.7,133.15,133.05,9.2005993]
[1763434608789,9.2005993,133.13,133.08,9.78882769]
[1763434608992,9.2005993,133.12,133.08,9.78882769]
[1763434609191,9.2005993,133.14,133.1,9.78882769]
[1763434609391,9.2005993,133.16,133.12,9.78882769]
[1763434609602,9.2005993,133.16,133.12,18.06171912]
[1763434609791,18.12096,133.17,133.12,18.06171912]
[1763434609996,9.2005993,133.16,133.14,9.78882769]
[1763434610208,9.2005993,133.16,133.13,9.78882769]
[1763434610483,18.12096,133.18,133.16,9.78882769]
[1763434610700,18.12096,133.18,133.13,8.27289143]
[1763434610906,18.12096,133.18,133.13,9.2005993]
[1763434611102,18.12096,133.18,133.13,17.47349073]
[1763434611414,18.12096,133.18,133.14,18.98942699]
[1763434611619,9.2005993,133.23,133.18,9.78882769]
[1763434611811,0.7,133.25,133.18,18.98942699]
[1763434611998,18.12096,133.2,133.18,18.98942699]
[1763434612189,0.7,133.25,133.19,9.2005993]
[1763434612396,9.2005993,133.24,133.2,9.78882769]
[1763434612597,18.12096,133.23,133.2,9.78882769]
[1763434612912,18.12096,133.23,133.19,18.98942699]
[1763434613210,0.7,133.27,133.19,18.98942699]
[1763434613417,9.2005993,133.24,133.19,18.98942699]
[1763434613587,9.2005993,133.24,133.19,27.26231842]
[1763434613916,18.12096,133.23,133.19,27.26231842]
[1763434614097,18.12096,133.23,133.19,18.98942699]
[1763434614595,9.2005993,133.23,133.19,9.78882769]
[1763434614797,18.12096,133.22,133.21,9.78882769]
[1763434615116,18.12096,133.22,133.21,18.06171912]
[1763434615314,18.12096,133.22,133.21,9.78882769]